[Event "Late-Titled-Tuesday-Blitz-April-16-2024"]
[Site "Chess.com"]
[Date "2024.04.16"]
[Round "10"]
[White "1g60-1"]
[Black "StopLookingAtMyProfile"]
[Result "0-1"]
[WhiteElo "2418"]
[BlackElo "2344"]
[TimeControl "180+1"]
[EndTime "15:54:53 PDT"]
[Termination "StopLookingAtMyProfile won by resignation"]

1. e4 {[%clk 0:03:00.9]} 1... e6 {[%clk 0:03:00.1]} 2. d4 {[%clk 0:03:00]} 2...
d5 {[%clk 0:03:00.7]} 3. e5 {[%clk 0:03:00.7]} 3... c5 {[%clk 0:03:00.7]} 4. Nf3
{[%clk 0:03:01.3]} 4... cxd4 {[%clk 0:02:59.5]} 5. Bd3 {[%clk 0:03:01.5]} 5...
Nc6 {[%clk 0:02:59.9]} 6. a3 {[%clk 0:03:01.3]} 6... Nge7 {[%clk 0:02:58.7]} 7.
O-O {[%clk 0:03:00.7]} 7... Ng6 {[%clk 0:02:58.6]} 8. Re1 {[%clk 0:03:01]} 8...
Qc7 {[%clk 0:02:55.7]} 9. Qe2 {[%clk 0:03:01.3]} 9... f6 {[%clk 0:02:53.2]} 10.
Bxg6+ {[%clk 0:02:53.2]} 10... hxg6 {[%clk 0:02:54.1]} 11. Bf4 {[%clk
0:02:53.3]} 11... fxe5 {[%clk 0:02:22.6]} 12. Nxe5 {[%clk 0:02:53]} 12... Nxe5
{[%clk 0:02:21.6]} 13. Bxe5 {[%clk 0:02:52.7]} 13... Bd6 {[%clk 0:02:21.7]} 14.
Nd2 {[%clk 0:02:30.5]} 14... Bxe5 {[%clk 0:02:17.7]} 15. Qxe5 {[%clk 0:02:31.4]}
15... Qxe5 {[%clk 0:02:17.2]} 16. Rxe5 {[%clk 0:02:32.3]} 16... Ke7 {[%clk
0:02:14.2]} 17. Nf3 {[%clk 0:02:32]} 17... Kd6 {[%clk 0:02:14.4]} 18. Rae1
{[%clk 0:02:31.7]} 18... Rh5 {[%clk 0:02:11.5]} 19. R5e2 {[%clk 0:02:21.6]}
19... d3 {[%clk 0:02:00.6]} 20. cxd3 {[%clk 0:02:20.4]} 20... Bd7 {[%clk
0:02:00.8]} 21. d4 {[%clk 0:02:17.6]} 21... Rc8 {[%clk 0:01:50.9]} 22. Ne5
{[%clk 0:02:14]} 22... Rh4 {[%clk 0:01:45.5]} 23. Nxd7 {[%clk 0:02:04.5]} 23...
Kxd7 {[%clk 0:01:45]} 24. Rxe6 {[%clk 0:02:04.5]} 24... Rxd4 {[%clk 0:01:44.7]}
25. Rxg6 {[%clk 0:02:01.6]} 25... Rc2 {[%clk 0:01:37]} 26. Rxg7+ {[%clk
0:02:01]} 26... Kc6 {[%clk 0:01:35.9]} 27. Re6+ {[%clk 0:01:57.5]} 27... Kb5
{[%clk 0:01:34]} 28. Rxb7+ {[%clk 0:01:53.7]} 28... Ka5 {[%clk 0:01:34.6]} 29.
Rxa7+ {[%clk 0:01:51.8]} 29... Kb5 {[%clk 0:01:34.9]} 30. g3 {[%clk 0:01:23.1]}
30... Rdd2 {[%clk 0:01:24.4]} 31. a4+ {[%clk 0:01:17.1]} 31... Kb4 {[%clk
0:01:19.6]} 32. Rb6+ {[%clk 0:01:06.1]} 32... Kc5 {[%clk 0:01:19.1]} 33. Rb5+
{[%clk 0:01:02]} 33... Kc6 {[%clk 0:01:19.2]} 34. Rf7 {[%clk 0:01:00.3]} 34...
d4 {[%clk 0:01:16]} 35. Rf6+ {[%clk 0:00:54.9]} 35... Kc7 {[%clk 0:01:14.8]} 36.
Rh5 {[%clk 0:00:47.7]} 36... d3 {[%clk 0:00:42.6]} 37. Rh7+ {[%clk 0:00:45.2]}
37... Kb8 {[%clk 0:00:42.7]} 38. Rd7 {[%clk 0:00:34.3]} 38... Kc8 {[%clk
0:00:30.4]} 39. Rd4 {[%clk 0:00:31.2]} 39... Rxb2 {[%clk 0:00:26.7]} 40. h4
{[%clk 0:00:26.1]} 40... Rd1+ {[%clk 0:00:25.4]} 41. Kg2 {[%clk 0:00:26]} 41...
d2 {[%clk 0:00:24.9]} 42. Rfd6 {[%clk 0:00:25.6]} 42... Kc7 {[%clk 0:00:24.3]}
43. h5 {[%clk 0:00:20.6]} 43... Rb4 {[%clk 0:00:19.1]} 44. Rxd2 {[%clk
0:00:19.5]} 44... Rxd2 {[%clk 0:00:18.8]} 45. Rxd2 {[%clk 0:00:20.4]} 45... Rxa4
{[%clk 0:00:18.9]} 46. Kh3 {[%clk 0:00:20.2]} 46... Ra1 {[%clk 0:00:17.4]} 47.
Kg4 {[%clk 0:00:16.9]} 47... Rh1 {[%clk 0:00:17.8]} 48. f4 {[%clk 0:00:16.7]}
48... Rh2 {[%clk 0:00:17.9]} 49. f5 {[%clk 0:00:16]} 49... Rxd2 {[%clk 0:00:18]}
50. Kg5 {[%clk 0:00:16.5]} 50... Kd7 {[%clk 0:00:18.2]} 51. Kg6 {[%clk
0:00:16.9]} 51... Ke7 {[%clk 0:00:17.7]} 52. Kg7 {[%clk 0:00:16.3]} 52... Rf2
{[%clk 0:00:16.6]} 53. g4 {[%clk 0:00:15.9]} 53... Rg2 {[%clk 0:00:15]} 54. f6+
{[%clk 0:00:16]} 54... Ke6 {[%clk 0:00:15.4]} 55. h6 {[%clk 0:00:12.5]} 55...
Rxg4+ {[%clk 0:00:15.6]} 0-1

[Event "Late-Titled-Tuesday-Blitz-April-16-2024"]
[Site "Chess.com"]
[Date "2024.04.16"]
[Round "10"]
[White "vova-79"]
[Black "Denisenko_Denis"]
[Result "1-0"]
[WhiteElo "2541"]
[BlackElo "2431"]
[TimeControl "180+1"]
[EndTime "15:54:58 PDT"]
[Termination "vova-79 won by resignation"]

1. d4 {[%clk 0:02:55.9]} 1... d5 {[%clk 0:02:59.6]} 2. c4 {[%clk 0:02:52.2]}
2... c6 {[%clk 0:02:59.4]} 3. Nc3 {[%clk 0:02:52.1]} 3... Nf6 {[%clk 0:02:59]}
4. e3 {[%clk 0:02:52.3]} 4... Bf5 {[%clk 0:02:58.2]} 5. cxd5 {[%clk 0:02:51.8]}
5... cxd5 {[%clk 0:02:57.8]} 6. Qb3 {[%clk 0:02:50.2]} 6... Bc8 {[%clk
0:02:45.4]} 7. Nf3 {[%clk 0:02:46.9]} 7... e6 {[%clk 0:02:45.4]} 8. Ne5 {[%clk
0:02:46.4]} 8... Be7 {[%clk 0:02:43.3]} 9. Bd3 {[%clk 0:02:44.8]} 9... O-O
{[%clk 0:02:42.9]} 10. O-O {[%clk 0:02:44.4]} 10... Nc6 {[%clk 0:02:41.5]} 11.
f4 {[%clk 0:02:44.1]} 11... Nd7 {[%clk 0:02:33.2]} 12. Bd2 {[%clk 0:02:30]}
12... f6 {[%clk 0:02:25.8]} 13. Nf3 {[%clk 0:02:15.5]} 13... Qb6 {[%clk
0:02:24.4]} 14. f5 {[%clk 0:02:10.6]} 14... Qxb3 {[%clk 0:02:17.4]} 15. axb3
{[%clk 0:02:11.1]} 15... Nb6 {[%clk 0:02:17]} 16. fxe6 {[%clk 0:01:41.7]} 16...
Bxe6 {[%clk 0:02:17.9]} 17. Nb5 {[%clk 0:01:41.8]} 17... Rfc8 {[%clk 0:02:09.3]}
18. Rfc1 {[%clk 0:01:31.4]} 18... a6 {[%clk 0:02:08.7]} 19. Nc3 {[%clk
0:01:28.9]} 19... Nb4 {[%clk 0:01:55.9]} 20. Be2 {[%clk 0:01:22.7]} 20... Bf5
{[%clk 0:01:46.5]} 21. Ne1 {[%clk 0:01:19.9]} 21... Bd6 {[%clk 0:01:39.7]} 22.
Nd1 {[%clk 0:01:08.8]} 22... Kf7 {[%clk 0:01:32.9]} 23. Nf2 {[%clk 0:01:03.2]}
23... Rxc1 {[%clk 0:01:28.4]} 24. Rxc1 {[%clk 0:01:02.1]} 24... Rc8 {[%clk
0:01:29.3]} 25. Rxc8 {[%clk 0:01:01.3]} 25... Nxc8 {[%clk 0:01:26.1]} 26. Ned3
{[%clk 0:01:01.3]} 26... Nxd3 {[%clk 0:01:22.8]} 27. Bxd3 {[%clk 0:01:01.7]}
27... Bxd3 {[%clk 0:01:21.1]} 28. Nxd3 {[%clk 0:01:02.1]} 28... Ke6 {[%clk
0:01:16.7]} 29. Kf2 {[%clk 0:01:02.2]} 29... h5 {[%clk 0:01:10.6]} 30. h3 {[%clk
0:01:01.9]} 30... Ne7 {[%clk 0:01:01.7]} 31. g4 {[%clk 0:00:55.9]} 31... hxg4
{[%clk 0:01:01.3]} 32. hxg4 {[%clk 0:00:56.8]} 32... Nc6 {[%clk 0:01:01]} 33.
Kf3 {[%clk 0:00:54.5]} 33... g6 {[%clk 0:00:58.9]} 34. Be1 {[%clk 0:00:51.6]}
34... Ne7 {[%clk 0:00:51.8]} 35. Bg3 {[%clk 0:00:44]} 35... b6 {[%clk
0:00:48.4]} 36. Bxd6 {[%clk 0:00:36.9]} 36... Kxd6 {[%clk 0:00:49.3]} 37. Nf4
{[%clk 0:00:36.2]} 37... g5 {[%clk 0:00:45.9]} 38. Nh5 {[%clk 0:00:35.2]} 38...
Ke6 {[%clk 0:00:45.3]} 39. e4 {[%clk 0:00:31.4]} 39... dxe4+ {[%clk 0:00:40.2]}
40. Kxe4 {[%clk 0:00:32.3]} 40... f5+ {[%clk 0:00:29.8]} 41. gxf5+ {[%clk
0:00:31.1]} 41... Nxf5 {[%clk 0:00:29.5]} 42. d5+ {[%clk 0:00:31.6]} 42... Kd6
{[%clk 0:00:29.5]} 43. Kxf5 {[%clk 0:00:31.5]} 43... Kxd5 {[%clk 0:00:30]} 44.
Ng3 {[%clk 0:00:28.2]} 44... Kc5 {[%clk 0:00:29.8]} 45. Ne4+ {[%clk 0:00:25.2]}
45... Kb4 {[%clk 0:00:30]} 46. Nd2 {[%clk 0:00:25.5]} 46... a5 {[%clk
0:00:28.7]} 47. Kxg5 {[%clk 0:00:25.6]} 47... a4 {[%clk 0:00:29]} 48. Kf4 {[%clk
0:00:24.4]} 48... a3 {[%clk 0:00:24.8]} 49. bxa3+ {[%clk 0:00:23.7]} 49... Kc3
{[%clk 0:00:25.2]} 50. Ke3 {[%clk 0:00:22.9]} 50... Kb2 {[%clk 0:00:25.3]} 51.
a4 {[%clk 0:00:22.6]} 51... Ka3 {[%clk 0:00:25.5]} 52. Kd3 {[%clk 0:00:22.3]}
52... Kb4 {[%clk 0:00:25.9]} 53. Kc2 {[%clk 0:00:22.2]} 53... b5 {[%clk
0:00:25.3]} 54. axb5 {[%clk 0:00:22]} 54... Kxb5 {[%clk 0:00:26.2]} 55. Kc3
{[%clk 0:00:21.6]} 55... Kc5 {[%clk 0:00:26.8]} 56. b4+ {[%clk 0:00:20.9]} 56...
Kb5 {[%clk 0:00:27.3]} 57. Kb3 {[%clk 0:00:21]} 57... Kb6 {[%clk 0:00:27.7]} 58.
Kc4 {[%clk 0:00:21.9]} 58... Kc6 {[%clk 0:00:27.8]} 59. b5+ {[%clk 0:00:22.8]}
59... Kb6 {[%clk 0:00:28.3]} 60. Kb4 {[%clk 0:00:23.6]} 60... Kb7 {[%clk
0:00:28.9]} 61. Kc5 {[%clk 0:00:24.5]} 61... Kc7 {[%clk 0:00:29.7]} 62. b6+
{[%clk 0:00:25.2]} 62... Kb7 {[%clk 0:00:29.9]} 63. Kb5 {[%clk 0:00:26]} 63...
Kb8 {[%clk 0:00:30.4]} 64. Kc6 {[%clk 0:00:26.8]} 64... Kc8 {[%clk 0:00:31.3]}
65. b7+ {[%clk 0:00:26.5]} 65... Kb8 {[%clk 0:00:32.2]} 66. Ne4 {[%clk
0:00:24.9]} 66... Ka7 {[%clk 0:00:32.5]} 67. Kc7 {[%clk 0:00:25.5]} 1-0

[Event "Late-Titled-Tuesday-Blitz-April-16-2024"]
[Site "Chess.com"]
[Date "2024.04.16"]
[Round "10"]
[White "Bkmzzzzz"]
[Black "manitodeplomo"]
[Result "0-1"]
[WhiteElo "2401"]
[BlackElo "2642"]
[TimeControl "180+1"]
[EndTime "15:55:09 PDT"]
[Termination "manitodeplomo won by resignation"]

1. e4 {[%clk 0:03:00.9]} 1... Nf6 {[%clk 0:02:58.8]} 2. Nc3 {[%clk 0:03:00.1]}
2... c5 {[%clk 0:02:57.4]} 3. Nf3 {[%clk 0:02:56.6]} 3... Nc6 {[%clk 0:02:56.5]}
4. Bb5 {[%clk 0:02:56]} 4... Na5 {[%clk 0:02:54.8]} 5. O-O {[%clk 0:02:55.5]}
5... a6 {[%clk 0:02:54.6]} 6. Be2 {[%clk 0:02:52.7]} 6... b5 {[%clk 0:02:54.8]}
7. d3 {[%clk 0:02:48.1]} 7... d6 {[%clk 0:02:49.9]} 8. e5 {[%clk 0:02:45.5]}
8... dxe5 {[%clk 0:02:49.3]} 9. Nxe5 {[%clk 0:02:46.4]} 9... Bb7 {[%clk
0:02:49.7]} 10. Bf3 {[%clk 0:02:46.1]} 10... e6 {[%clk 0:02:47]} 11. Re1 {[%clk
0:02:41.2]} 11... Bd6 {[%clk 0:02:45.4]} 12. Bg5 {[%clk 0:02:38.2]} 12... Qc7
{[%clk 0:02:28.3]} 13. Bxb7 {[%clk 0:01:56.3]} 13... Qxb7 {[%clk 0:02:25.6]} 14.
Qe2 {[%clk 0:01:12.8]} 14... O-O-O {[%clk 0:01:36.9]} 15. Rad1 {[%clk
0:00:26.3]} 15... Bxe5 {[%clk 0:01:30.9]} 16. Qxe5 {[%clk 0:00:27.2]} 16... Nc6
{[%clk 0:01:31.2]} 17. Qxc5 {[%clk 0:00:26.9]} 17... h6 {[%clk 0:01:23.5]} 18.
Bf4 {[%clk 0:00:26.7]} 18... Nd5 {[%clk 0:01:20.8]} 19. Bg3 {[%clk 0:00:20.3]}
19... Nxc3 {[%clk 0:00:51.3]} 20. Qxc3 {[%clk 0:00:21.2]} 20... Rhe8 {[%clk
0:00:51.4]} 21. f3 {[%clk 0:00:21.2]} 21... f6 {[%clk 0:00:48.6]} 22. Bf2 {[%clk
0:00:21.3]} 22... e5 {[%clk 0:00:48.5]} 23. Re4 {[%clk 0:00:18.5]} 23... Kb8
{[%clk 0:00:46.1]} 24. Ree1 {[%clk 0:00:18.3]} 24... g5 {[%clk 0:00:43.5]} 25.
a3 {[%clk 0:00:18.5]} 25... h5 {[%clk 0:00:42.7]} 26. Qc5 {[%clk 0:00:17.1]}
26... g4 {[%clk 0:00:41.8]} 27. fxg4 {[%clk 0:00:15.9]} 27... hxg4 {[%clk
0:00:42.7]} 28. Qb6 {[%clk 0:00:15.8]} 28... f5 {[%clk 0:00:36.8]} 29. Qxb7+
{[%clk 0:00:15.6]} 29... Kxb7 {[%clk 0:00:37]} 30. Bc5 {[%clk 0:00:15.4]} 30...
Rd5 {[%clk 0:00:34.1]} 31. Be3 {[%clk 0:00:14.8]} 31... Rdd8 {[%clk 0:00:32.7]}
32. Bg5 {[%clk 0:00:14.7]} 32... Rc8 {[%clk 0:00:32.1]} 33. Rd2 {[%clk
0:00:14.8]} 33... Nd4 {[%clk 0:00:31.7]} 34. c3 {[%clk 0:00:14.6]} 34... Ne6
{[%clk 0:00:31]} 35. Bf6 {[%clk 0:00:13.2]} 35... Nc5 {[%clk 0:00:18.3]} 36.
Rxe5 {[%clk 0:00:12.8]} 36... Rxe5 {[%clk 0:00:16.9]} 37. Bxe5 {[%clk
0:00:13.7]} 37... Re8 {[%clk 0:00:17.1]} 38. d4 {[%clk 0:00:13.8]} 38... Ne4
{[%clk 0:00:16.6]} 39. Re2 {[%clk 0:00:14.5]} 39... Kc6 {[%clk 0:00:16.5]} 40.
h3 {[%clk 0:00:14.8]} 40... Kd5 {[%clk 0:00:16.5]} 41. hxg4 {[%clk 0:00:14.9]}
41... fxg4 {[%clk 0:00:17.4]} 42. g3 {[%clk 0:00:14.4]} 42... Rf8 {[%clk
0:00:16]} 43. Kg2 {[%clk 0:00:14.8]} 43... Rf3 {[%clk 0:00:16.1]} 44. Bf4 {[%clk
0:00:14.8]} 44... a5 {[%clk 0:00:15.4]} 45. Re1 {[%clk 0:00:13.6]} 45... Rf2+
{[%clk 0:00:12.3]} 46. Kg1 {[%clk 0:00:14]} 46... Rxb2 {[%clk 0:00:12.6]} 47.
Rc1 {[%clk 0:00:14.5]} 47... a4 {[%clk 0:00:12.2]} 48. Kf1 {[%clk 0:00:14.1]}
48... Rb3 {[%clk 0:00:12]} 49. Rc2 {[%clk 0:00:13.8]} 49... Rxc3 {[%clk
0:00:12]} 50. Rb2 {[%clk 0:00:12.6]} 50... Rb3 {[%clk 0:00:12]} 51. Rc2 {[%clk
0:00:11.1]} 51... Rxa3 {[%clk 0:00:10.9]} 52. Kg2 {[%clk 0:00:11.3]} 52... Rb3
{[%clk 0:00:11]} 53. Rc8 {[%clk 0:00:11]} 53... a3 {[%clk 0:00:11.1]} 54. Rd8+
{[%clk 0:00:11.5]} 54... Kc4 {[%clk 0:00:11.3]} 55. d5 {[%clk 0:00:11.7]} 55...
Rb2+ {[%clk 0:00:09.8]} 0-1

[Event "Late-Titled-Tuesday-Blitz-April-16-2024"]
[Site "Chess.com"]
[Date "2024.04.16"]
[Round "10"]
[White "Sanyura"]
[Black "Fins0905"]
[Result "0-1"]
[WhiteElo "2615"]
[BlackElo "2788"]
[TimeControl "180+1"]
[EndTime "15:55:20 PDT"]
[Termination "Fins0905 won on time"]

1. Nf3 {[%clk 0:02:17.8]} 1... d5 {[%clk 0:02:58.3]} 2. g3 {[%clk 0:02:17.3]}
2... c6 {[%clk 0:02:58.5]} 3. Bg2 {[%clk 0:02:17.5]} 3... Bg4 {[%clk 0:02:58.7]}
4. O-O {[%clk 0:02:18]} 4... Nd7 {[%clk 0:02:58.9]} 5. d3 {[%clk 0:02:18.6]}
5... Ngf6 {[%clk 0:02:59]} 6. Nbd2 {[%clk 0:02:18.8]} 6... e5 {[%clk 0:02:59.3]}
7. e4 {[%clk 0:02:19.2]} 7... dxe4 {[%clk 0:02:59.7]} 8. dxe4 {[%clk 0:02:18.8]}
8... Be7 {[%clk 0:03:00]} 9. h3 {[%clk 0:02:19.1]} 9... Bh5 {[%clk 0:02:59.9]}
10. Qe1 {[%clk 0:02:19.5]} 10... O-O {[%clk 0:02:59.9]} 11. Nc4 {[%clk
0:02:17.1]} 11... Qc7 {[%clk 0:02:59.2]} 12. g4 {[%clk 0:02:17.4]} 12... Bg6
{[%clk 0:02:58.9]} 13. Nh4 {[%clk 0:02:18.1]} 13... Rfe8 {[%clk 0:02:56.7]} 14.
Nf5 {[%clk 0:02:13.7]} 14... Bf8 {[%clk 0:02:55]} 15. a4 {[%clk 0:02:11]} 15...
Nc5 {[%clk 0:02:51.2]} 16. a5 {[%clk 0:01:57.5]} 16... Ne6 {[%clk 0:02:47.1]}
17. Qe2 {[%clk 0:01:43.2]} 17... b5 {[%clk 0:02:35.3]} 18. axb6 {[%clk
0:01:40.5]} 18... axb6 {[%clk 0:02:35.6]} 19. Rxa8 {[%clk 0:01:41.1]} 19... Rxa8
{[%clk 0:02:36.3]} 20. h4 {[%clk 0:01:36]} 20... b5 {[%clk 0:02:30]} 21. Nce3
{[%clk 0:01:33.2]} 21... Nf4 {[%clk 0:02:09.2]} 22. Qf3 {[%clk 0:01:33]} 22...
h5 {[%clk 0:02:04.4]} 23. g5 {[%clk 0:01:29.6]} 23... Nd7 {[%clk 0:02:02.1]} 24.
Rd1 {[%clk 0:01:24.1]} 24... Nc5 {[%clk 0:01:54.6]} 25. Nf1 {[%clk 0:01:23.7]}
25... Nce6 {[%clk 0:01:49.3]} 26. N1g3 {[%clk 0:01:10.7]} 26... Rd8 {[%clk
0:01:41.8]} 27. Kh2 {[%clk 0:00:53]} 27... Rd7 {[%clk 0:01:37.6]} 28. Rxd7
{[%clk 0:00:24.7]} 28... Qxd7 {[%clk 0:01:37.7]} 29. Qc3 {[%clk 0:00:24.9]}
29... Nxg2 {[%clk 0:01:06.2]} 30. Kxg2 {[%clk 0:00:23.7]} 30... Nf4+ {[%clk
0:01:06.5]} 31. Kh2 {[%clk 0:00:21.2]} 31... Qd1 {[%clk 0:01:04]} 32. Be3 {[%clk
0:00:19.1]} 32... Qf3 {[%clk 0:00:48.3]} 33. Bxf4 {[%clk 0:00:12.1]} 33... Qxf2+
{[%clk 0:00:48.2]} 34. Kh3 {[%clk 0:00:02.8]} 34... exf4 {[%clk 0:00:48.9]} 35.
Nh1 {[%clk 0:00:02.7]} 35... Qe2 {[%clk 0:00:40.7]} 36. Nd4 {[%clk 0:00:02.1]}
36... Qxe4 {[%clk 0:00:40]} 37. Nf3 {[%clk 0:00:01.7]} 37... Bf5+ {[%clk
0:00:36.7]} 38. Kg2 {[%clk 0:00:01.3]} 38... Bg4 {[%clk 0:00:37.6]} 39. Nf2
{[%clk 0:00:01.7]} 39... Qd5 {[%clk 0:00:33.6]} 40. Qd3 {[%clk 0:00:01.9]} 40...
Qe6 {[%clk 0:00:28.6]} 41. Qe4 {[%clk 0:00:02.4]} 41... Qd6 {[%clk 0:00:26.9]}
42. c3 {[%clk 0:00:02.2]} 42... c5 {[%clk 0:00:25.8]} 43. Nd3 {[%clk 0:00:02.8]}
43... b4 {[%clk 0:00:21.6]} 44. cxb4 {[%clk 0:00:02.5]} 44... cxb4 {[%clk
0:00:21]} 45. Nxf4 {[%clk 0:00:03.1]} 45... Qd1 {[%clk 0:00:17.4]} 46. Ne5
{[%clk 0:00:03]} 46... Qd2+ {[%clk 0:00:16.6]} 47. Kg3 {[%clk 0:00:03.7]} 47...
Qxb2 {[%clk 0:00:14.7]} 48. Nxg4 {[%clk 0:00:04.1]} 48... hxg4 {[%clk
0:00:14.8]} 49. h5 {[%clk 0:00:04.3]} 49... Qc3+ {[%clk 0:00:13.6]} 50. Kxg4
{[%clk 0:00:04.4]} 50... b3 {[%clk 0:00:12]} 51. g6 {[%clk 0:00:04.8]} 51... Qf6
{[%clk 0:00:11.8]} 52. gxf7+ {[%clk 0:00:05]} 52... Qxf7 {[%clk 0:00:12.3]} 53.
Ng6 {[%clk 0:00:05.2]} 53... b2 {[%clk 0:00:12]} 54. Ne5 {[%clk 0:00:05.9]}
54... Qe6+ {[%clk 0:00:12.2]} 55. Kh4 {[%clk 0:00:05.9]} 55... Be7+ {[%clk
0:00:11.2]} 56. Kg3 {[%clk 0:00:06.4]} 56... Bd6 {[%clk 0:00:10.9]} 57. Qa8+
{[%clk 0:00:06.3]} 57... Kh7 {[%clk 0:00:11]} 58. Qe4+ {[%clk 0:00:06.9]} 58...
Kh8 {[%clk 0:00:10.6]} 59. Qa8+ {[%clk 0:00:06.9]} 59... Qg8 {[%clk 0:00:10.1]}
0-1

[Event "Late-Titled-Tuesday-Blitz-April-16-2024"]
[Site "Chess.com"]
[Date "2024.04.16"]
[Round "10"]
[White "balachess2006"]
[Black "Zhigalko_Sergei"]
[Result "0-1"]
[WhiteElo "2690"]
[BlackElo "2914"]
[TimeControl "180+1"]
[EndTime "15:55:26 PDT"]
[Termination "Zhigalko_Sergei won by resignation"]

1. c4 {[%clk 0:03:00.9]} 1... e5 {[%clk 0:03:00.2]} 2. g3 {[%clk 0:03:00.1]}
2... Nf6 {[%clk 0:03:00.5]} 3. Bg2 {[%clk 0:03:00.4]} 3... c6 {[%clk 0:03:01.1]}
4. Nf3 {[%clk 0:03:00.7]} 4... d6 {[%clk 0:03:01.2]} 5. Nc3 {[%clk 0:03:00.8]}
5... Be7 {[%clk 0:03:01.5]} 6. d4 {[%clk 0:03:01.3]} 6... e4 {[%clk 0:03:02]} 7.
Nd2 {[%clk 0:02:59.1]} 7... d5 {[%clk 0:03:02.6]} 8. O-O {[%clk 0:02:59.2]} 8...
O-O {[%clk 0:03:02.4]} 9. cxd5 {[%clk 0:02:59.6]} 9... cxd5 {[%clk 0:03:03.3]}
10. Nb3 {[%clk 0:02:56.2]} 10... h6 {[%clk 0:02:51.1]} 11. Bf4 {[%clk
0:02:48.2]} 11... Be6 {[%clk 0:02:44.6]} 12. Nb5 {[%clk 0:02:36.3]} 12... Nc6
{[%clk 0:02:37.1]} 13. Nc7 {[%clk 0:02:29.6]} 13... Rc8 {[%clk 0:02:36.7]} 14.
Nxe6 {[%clk 0:02:29.8]} 14... fxe6 {[%clk 0:02:37.6]} 15. Bh3 {[%clk 0:02:30.1]}
15... Qd7 {[%clk 0:02:30.6]} 16. Rc1 {[%clk 0:02:29.3]} 16... b6 {[%clk
0:02:15.3]} 17. f3 {[%clk 0:02:13.9]} 17... Bd6 {[%clk 0:01:48]} 18. Bxd6 {[%clk
0:01:55.1]} 18... Qxd6 {[%clk 0:01:48.3]} 19. f4 {[%clk 0:01:55.6]} 19... Ne7
{[%clk 0:01:37.8]} 20. e3 {[%clk 0:01:52.1]} 20... Nf5 {[%clk 0:01:34.1]} 21.
Qd2 {[%clk 0:01:50.6]} 21... a5 {[%clk 0:01:21.1]} 22. Rxc8 {[%clk 0:01:47.7]}
22... Rxc8 {[%clk 0:01:20.7]} 23. Rc1 {[%clk 0:01:48.6]} 23... Qf8 {[%clk
0:01:13.3]} 24. Kf2 {[%clk 0:01:41.1]} 24... h5 {[%clk 0:01:06.1]} 25. Rxc8
{[%clk 0:01:28.3]} 25... Qxc8 {[%clk 0:01:05.8]} 26. Qc1 {[%clk 0:01:29]} 26...
Qd7 {[%clk 0:01:00.2]} 27. Nd2 {[%clk 0:01:28]} 27... Ng4+ {[%clk 0:00:54.7]}
28. Bxg4 {[%clk 0:01:28]} 28... hxg4 {[%clk 0:00:55.6]} 29. b3 {[%clk
0:01:24.9]} 29... Kh7 {[%clk 0:00:36.3]} 30. a4 {[%clk 0:01:24.3]} 30... Qe7
{[%clk 0:00:24]} 31. Nf1 {[%clk 0:01:13.7]} 31... Qd7 {[%clk 0:00:17.9]} 32. Qd1
{[%clk 0:01:10]} 32... Nh6 {[%clk 0:00:17.2]} 33. Qc2 {[%clk 0:01:10.1]} 33...
Nf5 {[%clk 0:00:15.7]} 34. Qe2 {[%clk 0:01:03.2]} 34... Qc8 {[%clk 0:00:14]} 35.
Qxg4 {[%clk 0:00:52.7]} 35... Qc2+ {[%clk 0:00:13.4]} 36. Qe2 {[%clk 0:00:39.9]}
36... Qxb3 {[%clk 0:00:12.8]} 37. Qh5+ {[%clk 0:00:39.2]} 37... Kg8 {[%clk
0:00:11.1]} 38. g4 {[%clk 0:00:34.6]} 38... Qc2+ {[%clk 0:00:06.6]} 39. Kg1
{[%clk 0:00:33.9]} 39... Nd6 {[%clk 0:00:06.1]} 40. Qg6 {[%clk 0:00:29.7]} 40...
Qc8 {[%clk 0:00:05.4]} 41. f5 {[%clk 0:00:30]} 41... Qe8 {[%clk 0:00:05.8]} 42.
Qg5 {[%clk 0:00:24.9]} 42... exf5 {[%clk 0:00:05.7]} 43. gxf5 {[%clk 0:00:23.8]}
43... b5 {[%clk 0:00:05.1]} 44. Ng3 {[%clk 0:00:20.3]} 44... bxa4 {[%clk
0:00:03.2]} 45. f6 {[%clk 0:00:20.9]} 45... Qf7 {[%clk 0:00:02.5]} 46. Nh5
{[%clk 0:00:19.4]} 46... Ne8 {[%clk 0:00:02.8]} 47. fxg7 {[%clk 0:00:17.2]}
47... a3 {[%clk 0:00:03.3]} 48. Qh6 {[%clk 0:00:12.5]} 48... Nxg7 {[%clk
0:00:03.4]} 49. Nf6+ {[%clk 0:00:12.1]} 49... Kf8 {[%clk 0:00:03.9]} 50. Qh8+
{[%clk 0:00:08.5]} 50... Ke7 {[%clk 0:00:04.2]} 51. Ng8+ {[%clk 0:00:09.2]}
51... Kd7 {[%clk 0:00:02.4]} 52. Qh3+ {[%clk 0:00:09.1]} 52... Ne6 {[%clk
0:00:02.2]} 53. Nh6 {[%clk 0:00:08.5]} 53... Qg6+ {[%clk 0:00:02.6]} 54. Ng4
{[%clk 0:00:07.1]} 54... a2 {[%clk 0:00:02.2]} 55. Kf2 {[%clk 0:00:05.1]} 55...
Qf5+ {[%clk 0:00:02.5]} 56. Ke2 {[%clk 0:00:04.9]} 56... Qf3+ {[%clk 0:00:02.7]}
0-1